bitfinex-derivatives/quotes_BNBF0:USTF0_20250709
["timestamp","ask_amount","ask_price","bid_price","bid_amount"]
[1752100263982,3.35616882,669.62,668.91,1.66910655]
[1752100263983,3.35616882,669.62,669.04,1.51936636]
[1752100264179,3.35616882,669.62,669.05,1.51936636]
[1752100264383,3.35616882,669.62,669.06,1.51936636]
[1752100264582,3.35616882,669.62,669.07,1.51936636]
[1752100264783,3.35616882,669.62,669.08,1.51936636]
[1752100264985,3.35616882,669.62,669.09,1.51936636]
[1752100265181,3.35616882,669.61,669.1,1.51936636]
[1752100265480,3.35616882,669.61,669.11,1.51936636]
[1752100265683,3.35616882,669.61,669.12,1.51936636]
[1752100265881,3.35616882,669.57,669.13,1.51936636]
[1752100266181,3.35616882,669.57,669.14,1.51860848]
[1752100266485,3.35616882,669.57,668.94,1.66910655]
[1752100266781,3.35616882,669.57,668.95,1.51864028]
[1752100266982,3.35616882,669.57,668.96,1.51864028]
[1752100267186,3.35616882,669.56,668.97,1.51864028]
[1752100267492,0.25993815,669.77,668.98,1.51864028]
[1752100267690,0.25993815,669.77,668.99,1.51864028]
[1752100267898,0.25993815,669.77,669.0,1.51864028]
[1752100268093,0.25993815,669.77,669.01,1.51864028]
[1752100268293,0.25993815,669.77,669.02,1.51864028]
[1752100268494,0.25993815,669.77,669.03,1.51864028]
[1752100268698,0.25993815,669.77,669.04,1.51864028]
[1752100268994,0.25993815,669.77,669.05,1.51864028]
[1752100269295,0.25993815,669.77,669.06,1.51864028]
[1752100269496,0.25993815,669.77,669.07,1.51864028]
[1752100269794,0.25993815,669.77,669.08,1.51864028]
[1752100269994,0.25993815,669.77,669.09,1.51864028]
[1752100270191,0.25993815,669.77,669.1,1.51864028]
[1752100270395,0.25993815,669.77,669.11,1.51864028]
[1752100270596,0.25993815,669.77,669.12,1.51864028]
[1752100270793,0.25993815,669.77,669.13,1.51864028]
[1752100271096,0.25993815,669.77,669.14,1.51979727]
[1752100271295,0.25993815,669.77,668.88,0.26000418]
[1752100271496,3.61610697,669.77,668.89,1.51977372]
[1752100271793,3.35616882,669.76,668.9,1.51977372]
[1752100271995,3.35616882,669.76,668.91,1.51977372]
[1752100272193,3.35616882,669.75,668.92,1.51977372]
[1752100272397,3.35616882,669.76,668.93,1.51977372]
[1752100272594,3.35616882,669.76,668.94,1.51977372]
[1752100272897,3.35616882,669.76,668.88,0.26000418]
[1752100272898,3.35616882,669.76,668.95,1.51977372]
[1752100273098,3.35616882,669.74,668.96,1.51977372]
[1752100273296,3.35616882,669.54,668.97,1.51977372]
[1752100273598,3.35616882,669.55,668.98,1.51977372]
[1752100273800,3.35616882,669.55,668.99,1.51977372]
[1752100273996,3.35616882,669.55,669.0,1.51977372]
[1752100274297,3.35616882,669.64,669.01,1.51977372]
[1752100274501,3.35616882,669.64,669.02,1.51977372]
[1752100274701,3.35616882,669.64,669.03,1.51977372]
[1752100274900,3.35616882,669.64,669.04,1.51977372]
[1752100275097,3.35616882,669.64,669.05,1.51977372]
[1752100275299,3.35616882,669.64,669.06,1.51977372]
[1752100275604,3.35616882,669.65,668.88,0.26000418]
[1752100275802,3.35616882,669.65,668.89,1.51942328]
[1752100275999,3.35616882,669.65,668.9,1.51942328]
[1752100276203,3.35616882,669.65,668.91,1.51942328]
[1752100276400,3.35616882,669.65,668.92,1.51942328]
[1752100276601,3.35616882,669.65,668.93,1.51942328]
[1752100276904,3.35616882,669.65,668.94,1.51942328]
[1752100277204,3.35616882,669.65,668.95,1.51942328]
[1752100277404,3.35616882,669.65,668.96,1.51942328]
[1752100277604,3.35616882,669.64,668.97,1.51942328]
[1752100277806,3.35616882,669.65,668.98,1.51942328]
[1752100278006,3.35616882,669.65,668.99,1.51942328]
[1752100278206,3.35616882,669.65,669.0,1.51942328]
[1752100278403,3.35616882,669.65,669.01,1.51942328]
[1752100278706,3.35616882,669.65,669.02,1.51942328]
[1752100279001,3.35616882,669.65,669.03,1.51942328]
[1752100279206,3.35616882,669.65,669.04,1.51942328]
[1752100279402,3.35616882,669.65,669.05,1.51942328]
[1752100279611,3.35616882,669.65,668.88,0.26000418]
[1752100279804,3.35616882,669.65,668.89,1.5196268]
[1752100280008,3.35616882,669.65,668.9,1.5196268]
[1752100280208,3.35616882,669.65,668.91,1.5196268]
[1752100280409,3.35616882,669.65,668.92,1.5196268]
[1752100280608,3.35616882,669.65,668.93,1.5196268]
[1752100280908,3.35616882,669.65,668.94,1.5196268]
[1752100281108,3.35616882,669.65,668.95,1.5196268]
[1752100281311,3.35616882,669.65,668.96,1.5196268]
[1752100281506,3.35616882,669.65,668.97,1.5196268]
[1752100281711,3.35616882,669.65,668.98,1.5196268]
[1752100281906,3.35616882,669.65,668.99,1.5196268]
[1752100282111,3.35616882,669.65,668.88,0.26000418]
[1752100282312,3.35616882,669.65,668.89,1.51943487]
[1752100282511,3.35616882,669.65,668.9,1.51943487]
[1752100282712,3.35616882,669.65,668.91,1.51943487]
[1752100282912,3.35616882,669.64,668.92,1.51943487]
[1752100283112,3.35616882,669.64,668.93,1.51943487]
[1752100283318,3.35616882,669.64,668.94,1.51943487]
[1752100283511,3.35616882,669.65,668.95,1.51943487]
[1752100283810,3.35616882,669.65,668.96,1.51943487]
[1752100284011,3.35616882,669.65,668.97,1.51943487]
[1752100284210,3.35616882,669.54,668.98,1.51943487]
[1752100284410,3.35616882,669.54,668.99,1.51943487]
[1752100284611,3.35616882,669.54,669.0,1.51943487]
[1752100284810,3.35616882,669.54,669.01,1.51943487]
[1752100285012,3.35616882,669.54,669.02,1.51943487]
[1752100285313,3.35616882,669.54,669.03,1.51943487]
[1752100285512,3.35616882,669.54,669.04,1.51943487]
[1752100285715,3.35616882,669.54,668.88,0.26000418]
[1752100286012,3.35616882,669.54,668.89,1.51917712]
[1752100286211,3.35616882,669.54,668.9,1.51917712]
[1752100286413,3.35616882,669.54,668.91,1.51917712]
[1752100286617,3.35616882,669.54,668.92,1.51917712]
[1752100286816,3.35616882,669.54,668.88,0.26000418]
[1752100286817,3.35616882,669.54,668.93,1.51917712]
[1752100287016,3.35616882,669.54,668.94,1.51917712]
[1752100287217,3.35616882,669.54,668.95,1.51917712]
[1752100287417,3.35616882,669.54,668.96,1.51917712]
[1752100287714,3.35616882,669.5,668.97,1.51917712]
[1752100287913,3.35616882,669.5,668.88,0.26000418]
[1752100288120,3.35616882,669.53,668.89,1.51906955]
[1752100288314,3.35616882,669.56,668.9,1.51906955]
[1752100288519,3.35616882,669.56,668.91,1.51906955]
[1752100288715,3.35616882,669.56,668.92,1.51906955]
[1752100288913,3.35616882,669.56,668.93,1.51906955]
[1752100289117,3.35616882,669.56,668.94,1.51906955]
[1752100289314,3.35616882,669.56,668.95,1.51906955]
[1752100289517,3.35616882,669.56,668.96,1.51906955]
[1752100289816,3.35616882,669.56,668.97,1.51906955]
[1752100290019,3.35616882,669.56,668.98,1.51906955]
[1752100290219,3.35616882,669.56,668.99,1.51906955]
[1752100290417,3.35616882,669.56,669.0,1.51906955]
[1752100290616,3.35616882,669.57,669.01,1.51906955]
[1752100290820,3.35616882,669.57,669.02,1.51906955]
[1752100291016,3.35616882,669.57,669.03,1.51906955]
[1752100291320,3.35616882,669.57,668.88,0.26000418]
[1752100291520,3.35616882,669.57,668.89,1.51973835]
[1752100291718,3.35616882,669.57,668.9,1.51973835]
[1752100291919,3.35616882,669.57,668.91,1.51973835]
[1752100292116,3.35616882,669.57,668.92,1.51973835]
[1752100292419,3.35616882,669.57,668.93,1.51973835]
[1752100292616,3.35616882,669.57,668.94,1.51973835]
[1752100292818,3.35616882,669.57,668.95,1.51973835]
[1752100293014,3.35616882,669.57,668.96,1.51973835]
[1752100293219,3.35616882,669.57,668.97,1.51973835]
[1752100293415,3.35616882,669.58,668.98,1.51973835]
[1752100293616,3.35616882,669.58,668.88,0.26000418]
[1752100293816,3.35616882,669.58,668.89,1.51964439]
[1752100294017,3.35616882,669.58,668.9,1.51964439]
[1752100294217,3.35616882,669.58,668.91,1.51964439]
[1752100294518,3.35616882,669.66,668.92,1.51964439]
[1752100294720,3.35616882,669.66,668.89,1.66944441]
[1752100294721,3.35616882,669.66,668.93,1.51964439]
[1752100295020,3.35616882,669.66,668.94,1.51964439]
[1752100295217,3.35616882,669.66,668.95,1.51964439]
[1752100295418,3.35616882,669.66,668.96,1.51964439]
[1752100295616,3.35616882,669.66,668.97,1.51964439]
[1752100295821,3.35616882,669.66,668.98,1.51964439]
[1752100296117,3.35616882,669.66,668.99,1.51964439]
[1752100296321,3.35616882,669.66,669.0,1.51964439]
[1752100296519,3.35616882,669.66,669.01,1.51964439]
[1752100296721,3.35616882,669.66,669.02,1.51964439]
[1752100296917,3.35616882,669.66,668.97,2.001]
[1752100296918,3.35616882,669.66,669.03,1.51964439]
[1752100297123,3.35616882,669.66,669.04,1.51964439]
[1752100297424,3.35616882,669.66,669.05,1.51964439]
[1752100297625,3.35616882,669.66,669.06,1.51964439]
[1752100297820,3.35616882,669.66,669.07,1.51964439]
[1752100298023,3.35616882,669.65,669.08,1.51964439]
[1752100298324,3.35616882,669.62,669.09,1.51964439]
[1752100298523,3.35616882,669.62,669.1,1.51964439]
[1752100298723,3.35616882,669.62,669.11,1.51964439]
[1752100298925,3.35616882,669.62,669.12,1.51964439]
[1752100299123,3.35616882,669.63,668.97,2.001]
[1752100299326,3.35616882,669.63,668.98,1.51929138]
[1752100299526,3.35616882,669.63,668.99,1.51929138]
[1752100299827,3.35616882,669.63,669.0,1.51929138]
[1752100300027,3.35616882,669.63,669.01,1.51929138]
[1752100300326,3.35616882,669.6,669.02,1.51929138]
[1752100300523,3.35616882,669.6,669.03,1.51929138]
[1752100300725,3.35616882,669.6,669.04,1.51929138]
[1752100300928,3.35616882,669.6,669.05,1.51929138]
[1752100301228,3.35616882,669.67,669.06,1.51929138]
[1752100301525,3.35616882,669.67,669.07,1.51929138]
[1752100301725,3.35616882,669.67,669.08,1.51929138]
[1752100301929,3.35616882,669.66,669.09,1.51929138]
[1752100302129,3.35616882,669.66,669.1,1.51929138]
[1752100302330,3.35616882,669.66,669.11,1.51929138]
[1752100302629,3.35616882,669.68,669.12,1.51929138]
[1752100302829,3.35616882,669.68,668.97,2.001]
[1752100303026,3.35616882,669.68,668.98,1.51953856]
[1752100303329,0.25993815,669.77,668.99,1.51953856]
[1752100303330,3.35616882,669.67,668.99,1.51953856]
[1752100303625,3.35616882,669.67,669.0,1.51953856]
[1752100303830,3.35616882,669.67,669.01,1.51953856]
[1752100304029,3.35616882,669.67,669.02,1.51953856]
[1752100304229,3.35616882,669.67,669.03,1.51953856]
[1752100304429,3.35616882,669.67,669.04,1.51953856]
[1752100304632,3.35616882,669.67,669.05,1.51953856]
[1752100304830,3.35616882,669.67,669.06,1.51953856]
[1752100305131,3.35616882,669.67,669.07,1.51953856]
[1752100305426,3.35616882,669.67,668.97,2.001]
[1752100305427,3.35616882,669.67,669.08,1.51953856]
[1752100305628,3.35616882,669.67,669.09,1.51953856]
[1752100305826,3.35616882,669.67,669.1,1.51953856]
[1752100306126,3.35616882,669.67,669.11,1.51953856]
[1752100306425,3.35616882,669.67,669.12,1.51953856]
[1752100306624,3.35616882,669.67,668.97,2.001]
[1752100306829,3.35616882,669.67,668.98,1.51952148]
[1752100307027,3.35616882,669.67,668.99,1.51952148]
[1752100307226,3.35616882,669.67,669.0,1.51952148]
[1752100307430,3.35616882,669.67,668.97,2.001]
[1752100307431,3.35616882,669.7,669.01,1.51952148]
[1752100307630,3.35616882,669.7,669.02,1.51952148]
[1752100307831,3.35616882,669.7,668.97,2.001]
[1752100307832,3.35616882,669.7,669.03,1.51952148]
[1752100308033,3.35616882,669.76,669.04,1.51952148]
[1752100308326,3.35616882,669.76,669.05,1.51952148]
[1752100308632,3.35616882,669.76,669.06,1.51952148]
[1752100308834,3.35616882,669.76,669.07,1.51952148]
[1752100309029,3.35616882,669.76,669.08,1.51952148]
[1752100309233,3.35616882,669.76,669.09,1.51952148]
[1752100309429,3.35616882,669.76,669.1,1.51952148]
[1752100309732,3.35616882,669.76,669.11,1.51952148]
[1752100309931,3.35616882,669.76,669.12,1.51952148]
[1752100310128,3.35616882,669.76,669.13,1.51952148]
[1752100310326,3.35616882,669.76,669.01,0.25991097]
[1752100310528,3.35616882,669.76,669.02,1.51941136]
[1752100310833,3.35616882,669.66,669.03,1.51941136]
[1752100311030,3.35616882,669.66,669.04,1.51941136]
[1752100311332,3.35616882,669.66,669.05,1.51941136]
[1752100311531,3.35616882,669.66,669.06,1.51941136]
[1752100311729,3.35616882,669.66,669.07,1.51941136]
[1752100312032,3.35616882,669.66,669.08,1.51941136]
[1752100312229,3.35616882,669.66,669.09,1.51941136]
[1752100312432,3.35616882,669.66,669.1,1.51941136]
[1752100312631,3.35616882,669.66,669.11,1.51941136]
[1752100312833,3.35616882,669.66,669.12,1.51941136]
[1752100313029,3.35616882,669.72,669.13,1.51941136]
[1752100313231,3.35616882,669.72,669.14,1.51941136]
[1752100313429,3.35616882,669.72,669.15,1.51941136]
[1752100313634,3.35616882,669.72,669.16,1.51941136]
[1752100313831,3.35616882,669.72,669.17,1.51941136]
[1752100314028,3.35616882,669.72,669.18,1.51941136]
[1752100314234,3.35616882,669.72,669.19,1.51941136]
[1752100314431,3.35616882,669.73,669.01,0.25991097]
[1752100314734,3.35616882,669.73,669.02,1.51868038]
[1752100314936,3.35616882,669.73,669.03,1.51868038]
[1752100315135,3.35616882,669.73,669.04,1.51868038]
[1752100315431,3.35616882,669.74,669.05,1.51868038]
[1752100315636,3.35616882,669.73,669.06,1.51868038]
[1752100315835,3.35616882,669.73,669.07,1.51868038]
[1752100316036,3.35616882,669.73,669.08,1.51868038]
[1752100316332,3.35616882,669.73,669.09,1.51868038]
[1752100316534,3.35616882,669.74,669.1,1.51868038]
[1752100316737,3.35616882,669.77,669.11,1.51868038]
[1752100316937,3.35616882,669.82,669.12,1.51868038]
[1752100317137,3.35616882,669.82,669.13,1.51868038]
[1752100317437,3.35616882,669.87,669.14,1.51868038]
[1752100317638,3.35616882,669.87,669.15,1.51868038]
[1752100317839,3.35616882,669.87,669.16,1.51868038]
[1752100318039,3.35616882,669.87,669.17,1.51868038]
[1752100318240,3.35616882,669.87,669.18,1.51868038]
[1752100318545,3.35616882,669.92,669.19,1.51868038]
[1752100318743,3.35616882,669.92,669.2,1.51868038]
[1752100318937,3.35616882,669.92,669.21,1.51868038]
[1752100319142,3.35616882,669.92,669.22,1.51868038]
[1752100319340,3.35616882,669.92,669.23,1.51868038]
[1752100319640,3.35616882,669.94,669.24,1.51868038]
[1752100319840,3.35616882,669.94,669.25,1.51868038]
[1752100320037,3.35616882,669.94,669.26,1.51868038]
[1752100320336,3.35616882,669.94,669.27,1.51868038]
[1752100320537,3.35616882,669.94,669.28,1.51868038]
[1752100320840,3.35616882,669.94,669.28,1.761]
[1752100321236,3.35616882,669.95,669.28,1.761]
[1752100322839,3.35616882,669.96,669.28,1.761]
[1752100323241,3.35616882,669.97,669.28,1.761]
[1752100323442,3.35616882,669.99,669.28,1.761]
[1752100323737,3.35616882,670.01,669.28,1.761]
[1752100324136,3.35616882,670.05,669.28,1.761]
[1752100324340,3.35616882,670.06,669.28,1.761]
[1752100324942,3.35616882,670.11,669.29,1.51891693]
[1752100325237,3.35616882,670.13,669.3,1.51891693]
[1752100325442,3.35616882,670.13,669.31,1.51891693]
[1752100325742,3.35616882,670.13,669.28,1.761]
[1752100326041,3.35616882,670.13,669.29,1.5184829]
[1752100326339,3.61598083,670.15,669.3,1.5184829]
[1752100326543,3.61598083,670.15,669.31,1.5184829]
[1752100326743,3.61598083,670.15,669.32,1.5184829]
[1752100326944,3.61598083,670.15,669.28,1.761]
[1752100327145,0.25981201,670.15,669.29,1.51802548]
[1752100327344,0.25981201,670.15,669.3,1.51802548]
[1752100327546,0.25981201,670.15,669.31,1.51802548]
[1752100327742,0.25981201,670.15,669.32,1.51802548]
[1752100328043,0.25981201,670.15,669.28,1.761]
[1752100328342,0.25981201,670.15,669.29,1.51764849]
[1752100328543,0.25981201,670.15,669.28,1.761]
[1752100328544,0.25981201,670.15,669.3,1.51764849]
[1752100328746,0.25981201,670.15,669.31,1.51764849]
[1752100328946,0.25981201,670.15,669.32,1.51764849]
[1752100329246,0.25981201,670.15,669.33,1.51764849]
[1752100329443,0.25981201,670.15,669.34,1.51764849]
[1752100329642,0.25981201,670.15,669.28,1.761]
[1752100329842,0.25981201,670.15,669.29,1.51680007]
[1752100330044,0.25981201,670.15,669.3,1.51680007]
[1752100330244,0.25981201,670.15,669.31,1.51680007]
[1752100330444,0.25981201,670.15,669.32,1.51680007]
[1752100330648,0.25981201,670.15,669.33,1.51680007]
[1752100330846,0.25981201,670.15,669.28,1.761]
[1752100331043,0.25981201,670.15,669.29,1.51646071]
[1752100331242,0.25981201,670.15,669.28,1.761]
[1752100331243,0.25981201,670.15,669.3,1.51646071]
[1752100331447,0.25981201,670.15,669.31,1.51646071]
[1752100331650,0.25981201,670.15,669.32,1.51646071]
[1752100331848,0.25981201,670.15,669.33,1.51646071]
[1752100332144,0.25981201,670.15,669.28,1.761]
[1752100332348,0.25981201,670.15,669.29,1.5159431]
[1752100332548,0.25981201,670.15,669.3,1.5159431]
[1752100332745,0.25981201,670.15,669.28,1.761]
[1752100332746,0.25981201,670.15,669.31,1.5159431]
[1752100332948,0.25981201,670.15,669.32,1.5159431]
[1752100333148,0.25981201,670.15,669.33,1.5159431]
[1752100333346,0.25981201,670.15,669.28,1.761]
[1752100333545,0.25981201,670.15,669.29,1.51574337]
[1752100333753,0.25981201,670.15,669.28,1.761]
[1752100333754,0.25981201,670.15,669.3,1.51574337]
[1752100333944,0.25981201,670.15,669.31,1.51574337]
[1752100334246,0.25981201,670.15,669.32,1.51574337]
[1752100334546,0.25981201,670.15,669.33,1.51508195]
[1752100334845,0.25981201,670.15,669.34,1.51508195]
[1752100335050,0.25981201,670.15,669.35,1.51508195]
[1752100335246,0.25981201,670.15,669.36,1.51508195]
[1752100335549,0.25981201,670.15,669.37,1.51508195]
[1752100335746,0.25981201,670.15,669.38,1.51508195]
[1752100336047,0.25981201,670.15,669.39,1.51508195]
[1752100336251,0.25981201,670.15,669.28,1.761]
[1752100336445,0.25981201,670.15,669.29,1.51447257]
[1752100336646,0.25981201,670.15,669.3,1.51447257]
[1752100336845,0.25981201,670.15,669.31,1.51447257]
[1752100337049,0.25981201,670.15,669.32,1.51447257]
[1752100337349,0.25981201,670.15,669.33,1.51447257]
[1752100337549,0.25981201,670.15,669.34,1.51447257]
[1752100337749,0.25981201,670.15,669.35,1.51447257]
[1752100337951,0.25981201,670.15,669.36,1.51447257]
[1752100338152,0.25981201,670.15,669.37,1.51447257]
[1752100338350,0.25981201,670.15,669.38,1.51447257]
[1752100338553,0.25981201,670.15,669.39,1.51447257]
[1752100338755,0.25981201,670.15,669.28,1.761]
[1752100339053,0.25981201,670.15,669.29,1.51400274]
[1752100339253,0.25981201,670.15,669.3,1.51400274]
[1752100339453,0.25981201,670.15,669.31,1.51400274]
[1752100339653,0.25981201,670.15,669.32,1.51400274]
[1752100339853,0.25981201,670.15,669.33,1.51400274]
[1752100340353,0.25981201,670.15,669.34,1.51400274]
[1752100340553,0.25981201,670.15,669.35,1.51400274]
[1752100340753,0.25981201,670.15,669.36,1.51400274]
[1752100340951,0.25981201,670.15,669.37,1.51400274]
[1752100341153,0.25981201,670.15,669.38,1.51400274]
[1752100341350,0.25981201,670.15,669.39,1.51400274]
[1752100341549,0.25981201,670.15,669.28,1.761]
[1752100341757,0.25981201,670.15,669.29,1.51353328]
[1752100342050,0.25981201,670.15,669.3,1.51353328]
[1752100342353,0.25981201,670.15,669.31,1.51353328]
[1752100342548,0.25981201,670.15,669.32,1.51353328]
[1752100342749,0.25981201,670.15,669.28,1.761]
[1752100342750,0.25981201,670.15,669.33,1.51353328]
[1752100342949,0.25981201,670.15,669.34,1.51353328]
[1752100343150,0.25981201,670.15,669.35,1.51353328]
[1752100343354,0.25981201,670.15,669.36,1.51353328]
[1752100343555,0.25981201,670.15,669.28,1.761]
[1752100343756,0.25981201,670.15,669.29,1.51366192]
[1752100343952,0.25981201,670.15,669.3,1.51366192]
[1752100344255,0.25981201,670.15,669.31,1.51366192]
[1752100344455,0.25981201,670.15,669.32,1.51366192]
[1752100344652,0.25981201,670.15,669.33,1.51366192]
[1752100344851,0.25981201,670.15,669.34,1.51366192]
[1752100345052,0.25981201,670.15,669.28,1.761]
[1752100345251,0.25981201,670.15,669.29,1.51382641]
[1752100345453,0.25981201,670.15,669.3,1.51382641]
[1752100345756,0.25981201,670.15,669.31,1.51382641]
[1752100345958,0.25981201,670.15,669.32,1.51382641]
[1752100346154,0.25981201,670.15,669.28,1.761]
[1752100346455,0.25981201,670.15,669.29,1.51402268]
[1752100346658,0.25981201,670.15,669.3,1.51402268]
[1752100346858,0.25981201,670.15,669.28,1.761]
[1752100347053,0.25981201,670.15,669.29,1.51408408]
[1752100347353,0.25981201,670.15,669.3,1.51408408]
[1752100347554,0.25981201,670.15,669.28,1.761]
[1752100347755,0.25981201,670.15,669.29,1.51420173]
[1752100347954,0.25981201,670.15,669.3,1.51420173]
[1752100348155,0.25981201,670.15,669.28,1.761]
[1752100348353,0.25981201,670.15,669.29,1.51422769]
[1752100348557,0.25981201,670.15,669.3,1.51422769]
[1752100348762,0.25981201,670.15,669.28,1.761]
[1752100348962,0.25981201,670.15,669.29,1.51433743]
[1752100349166,0.25981201,670.15,669.3,1.51433743]
[1752100349362,0.25981201,670.15,669.28,1.761]
[1752100349561,0.25981201,670.15,669.29,1.51449192]
[1752100349764,0.25981201,670.15,669.3,1.51449192]
[1752100349962,0.25981201,670.15,669.28,1.761]
[1752100350163,0.25981201,670.15,669.29,1.51449192]
[1752100350366,0.25981201,670.15,669.3,1.51449192]
[1752100350666,0.25981201,670.15,669.28,1.761]
[1752100350863,0.25981201,670.15,669.29,1.51466594]
[1752100351060,0.25981201,670.15,669.3,1.51466594]
[1752100351262,0.25981201,670.15,669.31,1.51475548]
[1752100351462,0.25981201,670.15,669.28,1.761]
[1752100351666,0.25981201,670.15,669.29,1.51491369]
[1752100351862,0.25981201,670.15,669.3,1.51491369]
[1752100352064,0.25981201,670.15,669.31,1.51491369]
[1752100352269,0.25981201,670.15,669.28,1.761]
[1752100352566,0.25981201,670.15,669.29,1.5151302]
[1752100352868,0.25981201,670.15,669.3,1.5151302]
[1752100353063,0.25981201,670.15,669.31,1.5151302]
[1752100353266,0.25981201,670.15,669.28,1.761]
[1752100353466,0.25981201,670.15,669.29,1.51536991]
[1752100353669,0.25981201,670.15,669.3,1.51536991]
[1752100353865,0.25981201,670.15,669.28,1.761]
[1752100354067,0.25981201,670.15,669.29,1.51536991]
[1752100354266,0.25981201,670.15,669.3,1.51536991]
[1752100354569,0.25981201,670.15,669.28,1.761]
[1752100354765,0.25981201,670.15,669.29,1.5154803]
[1752100355069,0.25981201,670.15,669.3,1.5154803]
[1752100355268,0.25981201,670.15,669.28,1.761]
[1752100355466,0.25981201,670.15,669.29,1.51560159]
[1752100355669,0.25981201,670.15,669.3,1.51560159]
[1752100355871,0.25981201,670.15,669.28,1.761]
[1752100356067,0.25981201,670.15,669.29,1.51560199]
[1752100356268,0.25981201,670.15,669.3,1.51560199]
[1752100356472,0.25981201,670.15,669.28,1.761]
[1752100356673,0.25981201,670.15,669.29,1.51573765]
[1752100356973,0.25981201,670.15,669.3,1.51573765]
[1752100357274,0.25981201,670.15,669.31,1.51589075]
[1752100357469,0.25981201,670.15,669.28,1.761]
[1752100357667,0.25981201,670.15,669.29,1.5158922]
[1752100357869,0.25981201,670.15,669.3,1.5158922]
[1752100358168,0.25981201,670.15,669.28,1.761]
[1752100358373,0.25981201,670.15,669.29,1.51595098]
[1752100358570,0.25981201,670.15,669.3,1.51595098]
[1752100358773,0.25981201,670.15,669.31,1.51595098]
[1752100359074,0.25981201,670.15,669.28,1.761]
[1752100359374,0.25981201,670.15,669.29,1.51611574]
[1752100359579,0.25981201,670.15,669.3,1.51611574]
[1752100359770,0.25981201,670.15,669.31,1.51611574]
[1752100359972,0.25981201,670.15,669.28,1.761]
[1752100360172,0.25981201,670.15,669.29,1.51623395]
[1752100360376,3.61598083,670.15,669.3,1.51623395]
[1752100360676,3.61598083,670.15,669.31,1.51623395]
[1752100360876,3.61598083,670.15,669.28,1.761]
[1752100361074,3.61598083,670.15,669.29,1.51641921]
[1752100361277,3.35616882,670.13,669.3,1.51641921]
[1752100361573,3.35616882,670.13,669.31,1.51641921]
[1752100361771,3.35616882,670.13,669.28,1.761]
[1752100361975,3.35616882,670.11,669.29,1.51662141]
[1752100362173,3.35616882,670.11,669.3,1.51662141]
[1752100362377,3.35616882,670.11,669.31,1.51662141]
[1752100362575,3.35616882,670.11,669.28,1.761]
[1752100362775,3.35616882,670.11,669.29,1.51683973]
[1752100362973,3.35616882,670.11,669.3,1.51683973]
[1752100363174,3.35616882,670.11,669.31,1.51683973]
[1752100363378,3.35616882,670.1,669.28,1.761]
[1752100363578,3.35616882,670.1,669.29,1.51707706]
[1752100363878,3.35616882,670.1,669.3,1.51707706]
[1752100364179,3.35616882,670.1,669.31,1.51707706]
[1752100364382,3.35616882,670.09,669.32,1.51707706]
[1752100364575,3.35616882,670.09,669.28,1.761]
[1752100364774,3.35616882,670.09,669.29,1.51731484]
[1752100365074,3.35616882,670.09,669.3,1.51731484]
[1752100365275,3.35616882,670.09,669.31,1.51731484]
[1752100365475,3.35616882,670.08,669.32,1.51731484]
[1752100365676,3.35616882,670.08,669.28,1.761]
[1752100365875,3.35616882,670.08,669.29,1.51758303]
[1752100366075,3.35616882,670.08,669.3,1.51758303]
[1752100366277,3.35616882,670.08,669.28,1.761]
[1752100366278,3.35616882,670.1,669.31,1.51758303]
[1752100366573,3.35616882,670.09,669.32,1.51758303]
[1752100366774,3.35616882,670.06,669.28,1.761]
[1752100366976,3.35616882,670.06,669.29,1.51788132]
[1752100367180,3.35616882,670.06,669.3,1.51788132]
[1752100367377,3.61598083,670.15,669.31,1.51788132]
[1752100367678,0.25981201,670.15,669.32,1.51788132]
[1752100367881,0.25981201,670.15,669.28,1.761]
[1752100368081,0.25981201,670.15,669.29,1.51821622]
[1752100368382,3.35616882,670.14,669.3,1.51821622]
[1752100368576,3.35616882,670.14,669.31,1.51821622]
[1752100368877,3.35616882,670.14,669.32,1.51821622]
[1752100369088,3.35616882,670.14,669.28,1.761]
[1752100369378,0.25981201,670.15,669.28,1.761]
[1752100369379,3.35616882,670.05,669.28,1.761]
[1752100370678,3.35616882,670.04,669.28,1.761]
[1752100371478,3.35616882,670.05,669.28,1.761]
[1752100372083,3.35616882,670.06,669.28,1.761]
[1752100372283,3.35616882,670.05,669.28,1.761]
[1752100372484,3.35616882,669.98,669.28,1.761]
[1752100372886,3.35616882,669.97,669.28,1.761]
[1752100373387,3.35616882,669.94,669.28,1.761]
[1752100374188,3.35616882,669.95,669.28,1.761]
[1752100375390,3.35616882,669.94,669.28,1.761]
[1752100375590,3.35616882,669.91,669.28,1.761]
[1752100377488,3.35616882,669.9,669.28,1.761]
[1752100379792,3.35616882,669.9,669.01,0.25991097]
[1752100379984,3.35616882,669.9,669.02,1.52186053]
[1752100380186,3.35616882,669.9,669.03,1.52186053]
[1752100380489,3.35616882,669.9,669.04,1.52186053]
[1752100380687,3.35616882,669.9,669.05,1.52186053]
[1752100380885,3.35616882,669.9,669.06,1.52186053]
[1752100381085,3.35616882,669.89,669.07,1.52186053]
[1752100381290,3.35616882,669.87,669.08,1.52186053]